{"text_format":"1","workbook":"xlsx","n_sheets":2,"sheets":["отчет 95 ОЗ 2017г","Лист1"],"not_rendered":{"charts":0,"images":0,"macros":0,"external_links":0,"defined_names":1,"comments":0,"pivot_tables":0},"unopened":[],"bounds":{"document_bytes":16777216,"sheet_cells":100000,"rows_first":2000,"rows_last":500,"rows_between":2000,"halvings":0,"cell_chars":16384,"cell_head_chars":4096},"cells_cut":0,"cells_raw":0,"read":"whole","date_system":"1900"}

{"sheet":"отчет 95 ОЗ 2017г","index":0,"n_rows":57,"n_cols":19,"rows_kept":57,"cut":false,"hidden":false,"merged":[[2,7,2,13],[25,15,25,16],[24,1,24,12],[24,13,24,16],[25,13,25,14],[8,10,8,11],[11,10,11,11],[9,1,9,2],[12,1,12,2],[13,1,13,2],[22,1,22,2],[18,1,18,2],[5,2,6,2],[5,3,6,3],[5,7,6,7],[5,1,6,1],[21,1,21,2],[20,1,20,2],[3,2,3,17],[10,10,10,11],[5,12,5,17],[5,6,6,6],[5,9,6,9],[7,10,7,11],[5,4,6,4],[5,10,6,11],[5,8,6,8],[5,5,6,5]]}
[]
[]
[null,null,null,null,null,null,null,"ГОДОВОЙ  ОТЧЕТ"]
[null,null,"     об использовании субсидии, предоставленной из областного бюджета Ленинградской области Скребловскому сельскому поселению Лужского муниципального района ЛО на реализацию проектов местных инициатив граждан в рамках подпрограммы «Создание условий для эффективного выполнения органами местного самоуправления своих полномочий» государственной программы Ленинградской области «Устойчивое общественное развитие в Ленинградской области»     за   2017 год"]
[]
[null,"Код по бюджетной классификации бюджета, предостав-ляющего межбюджетный трансферт","Код по классификации доходов бюджета, получающего межбюджетный трансферт","Утверждено бюджетных назначений на 2017 год (областной и местный бюджет)","Поступило средств областного бюджета","Размер софинансирования  из местного бюджета","Расходы, подтвержденные документами и произведенные за счет средств областного бюджета","Расходы, подтвержденные документами и произведенные за счет средств местного бюджета","Неиспользо-ванный остаток межбюджетного трансферта, подлежащий возврату","Наименование мероприятия",null,null,"Принятые бюджетные обязательства"]
[null,null,null,null,null,null,null,null,null,null,null,null,"контрагент","номер и дата договора","наименование работ","сумма договора","выполнено работ (сумма)","номер, дата акта выпол-ненных работ","Фактические показатели  результативности использования субсидии"]
[null,"990 1403         663 03 70880             521   251          ","011 202 02999 10 0000 151",{"$f":"E8+F8","v":64160.15},57100,7060.15,57100,7060.15,{"$f":"E8-G8","v":0},"Замена  светильников уличного  освещения в д.Репьи: -по улице Центральная у часовни и у домов № 3,15, 25,35; - по улице Озерная у домов № 14, 22, 36, 46, 50,54",null,null,"ООО \"СТРОЙВЕКТОР\"","МК №  2017-4 от 26.05.17г. ","Замена  светильников уличного  освещения в д.Репьи: -по улице Центральная у часовни и у домов № 3,15, 25,35; - по улице Озерная у домов № 14, 22, 36, 46, 50,54",{"$f":"D8","v":64160.15},{"$f":"D8","v":64160.15},"Акт № ЛС4 (КС 2)  от 29.05.17г                                           Акт № ЛС5 (КС 2)  от 29.05.17г. ","11 шт."]
[null,null,null,{"$f":"E9+F9","v":151651.26999999999},134900,16751.27,134900,16751.27,{"$f":"E9-G9","v":0},".Замена  светильников уличного  освещения в д.Брод: -по улице Тополинная у домов № 6,12,16,20,23;- по улице Новая у домов № 2,10;-по улице Центральная у домов № 1,3,13,14,19,25,33,38;- по улице Тупиковая  у дома № 12;- по улице Полевая у дома № 1 ;- на площади трех тополей у дома №1; по улице Чубаровская у домов № 3,22;- по Кузнецовкому переулку у дома № 6;- по улице Малобродской у домов № 3,7,13,17,23 ",null,null,"ООО \"СТРОЙВЕКТОР\"","МК №  2017-4 от 26.05.17г. ",".Замена  светильников уличного  освещения в д.Брод: -по улице Тополинная у домов № 6,12,16,20,23;- по улице Новая у домов № 2,10;-по улице Центральная у домов № 1,3,13,14,19,25,33,38;- по улице Тупиковая  у дома № 12;- по улице Полевая у дома № 1 ;- на площади трех тополей у дома №1; по улице Чубаровская у домов № 3,22;- по Кузнецовкому переулку у дома № 6;- по улице Малобродской у домов № 3,7,13,17,23 ",{"$f":"D9","v":151651.26999999999},{"$f":"P9","v":151651.26999999999},"Акт № ЛС1 (КС 2)  от 29.05.17г                                           Акт № ЛС2 (КС 2)  от 29.05.17г.      Акт № ЛС3 (КС 2)  от 29.05.17г.","26 шт."]
[null,"Итого по ООО \"СТРОЙВЕКТОР\"",null,{"$f":"SUM(D8:D9)","v":215811.41999999998},{"$f":"SUM(E8:E9)","v":192000},{"$f":"SUM(F8:F9)","v":23811.42},{"$f":"SUM(G8:G9)","v":192000},{"$f":"SUM(H8:H9)","v":23811.42},0,null,null,null,null,null,null,{"$f":"SUM(P8:P9)","v":215811.41999999998},{"$f":"SUM(Q8:Q9)","v":215811.41999999998},null,37]
[null,null,null,{"$f":"E11+F11","v":65000},52000,13000,52000,13000,{"$f":"E11-G11","v":0},"Установка фонарей уличного освещения в дер. Калгановка",null,null,"ИП Игнатьева Наталья Михайловна","МК №  17-05-1 от 05.06.17г.","Установка фонарей уличного освещения в дер. Калгановка",{"$f":"D11","v":65000},{"$f":"D11","v":65000},"Акт № 8358 от 05.06.17г.   ","8шт."]
[null,null,null,88788.58,59100,29688.58,59100,14025,0,"Установка фонарей уличного освещения в дер. Раковичи",null,null,"ИП Игнатьева Наталья Михайловна","МК №  17-05-2 от 06.06.17г.","Установка фонарей уличного освещения в дер. Раковичи",73125,{"$f":"P12","v":73125},"Акт № 8359 от 06.06.17г.   ","9 шт."]
[null,"Итого по ИП Игнатьева Н.М.",null,{"$f":"SUM(D11:D12)","v":153788.58000000002},{"$f":"SUM(E11:E12)","v":111100},42688.58,111100,27025,0,null,null,null,null,null,null,{"$f":"SUM(P11:P12)","v":138125},{"$f":"SUM(Q11:Q12)","v":138125},null,17]
[null,"ВСЕГО по замене светильников",null,{"$f":"D10+D13","v":369600},{"$f":"E10+E13","v":303100},66500,303100,50836.42,0,null,null,null,null,null,null,{"$f":"P10+P13","v":353936.42},{"$f":"Q10+Q13","v":353936.42},null,54]
[null,"990 1403         663 03 70880             521   251          ","011 202 02999 10 0000 151",{"$f":"E15+F15","v":259205.36},230537.49,28667.87,230537.49,28667.87,{"$f":"E15-G15","v":0},"Ремонт участка дороги общего пользования местного значения в д.Домкино по ул.Низовская ( участок дороги от 1,473 км до 1,545 км)",null,null,"ООО \"Вираж\"","МК № 2017-3 от 26.05.17г. ","Ремонт участка дороги общего пользования местного значения в д.Домкино по ул.Низовская ( участок дороги от 1,473 км до 1,545 км)",{"$f":"D15","v":259205.36},{"$f":"P15","v":259205.36},"Акт №1/4 (КС 2)  от 01.06.17г.    ","252,0 м.кв."]
[null,null,null,421238.74,374650.14,46588.6,374650.14,46588.6,{"$f":"E16-G16","v":0},"Ремонт дворовой территории у многоквартирных домов № 1 и № 2 в пос. Межозерный",null,null,"ООО \"Вираж\"","МК № 2017-3 от 26.05.17г. ","Ремонт дворовой территории у многоквартирных домов № 1 и № 2 в пос. Межозерный",421238.74,421238.74,"Акт №1/2 (КС 2)  от 02.06.17г.    ","508,2 м.кв."]
[null,null,null,172186.5,153142.84,19043.66,153142.84,19043.66,0,"Ремонт площадки у многоквартирного жилого дома № 1в пос. Межозерный",null,null,"ООО \"Вираж\"","МК № 2017-3 от 26.05.17г. ","Ремонт площадки у многоквартирного жилого дома № 1в пос. Межозерный",172186.5,172186.5,"Акт №1/3 (КС 2)  от 02.06.17г.    ","171,2 м.кв."]
[null,null,null,409904.60000000003,364569.53,45335.07,364569.53,45335.07,0,"Ремонт участка дороги общего пользования местного значения в д.Голубково по улице Луговая  ( от начала улицы до 0,215 км)",null,null,"ООО \"Вираж\"","МК № 2017-3 от 26.05.17г. ","Ремонт участка дороги общего пользования местного значения в д.Голубково по улице Луговая  ( от начала улицы до 0,215 км)",409904.60000000003,409904.60000000003,"Акт №1/1 (КС 2)  от 02.06.17г.    ","1107,5м.кв."]
[null,"Итого по ООО Вираж",null,{"$f":"SUM(D15:D18)","v":1262535.2},{"$f":"SUM(E15:E18)","v":1122900},{"$f":"SUM(F15:F18)","v":139635.20000000001},{"$f":"SUM(G15:G18)","v":1122900},{"$f":"SUM(H15:H18)","v":139635.20000000001},0,null,null,null,null,null,null,1262535.2,1262535.2,null,"2038,9 м.кв."]
[null,null,null,96000,45000,51000,45000,51000,0,".Ремонт участка дороги общего пользования местного значения в д.Калгановка по улице Липовая аллея ",null,null,"ИП Камагин Владимир Юрьевич","МК № 18 от 15.08.2017г.",".Ремонт участка дороги общего пользования местного значения в д.Калгановка по улице Липовая аллея ",96000,96000,"Акт № 18 от 08.09.2017г.","580 м.кв"]
[null,"Итого по ИП Камагин В.Ю.",null,{"$f":"SUM(D20:D20)","v":96000},{"$f":"SUM(E20:E20)","v":45000},{"$f":"SUM(F20:F20)","v":51000},{"$f":"SUM(G20:G20)","v":45000},{"$f":"SUM(H20:H20)","v":51000},0,null,null,null,null,null,null,96000,96000,null,{"$f":"S20","v":"580 м.кв"}]
[]
[null,"ВСЕГО по ремонту дорог",null,{"$f":"D19+D21","v":1358535.2},{"$f":"E19+E21","v":1167900},190635.2,1167900,190635.2,0,null,null,null,null,null,null,1358535.2,1358535.2,null,"2618,9 м.кв."]
[null,"ИТОГО",null,{"$f":"D14+D23","v":1728135.2},{"$f":"E14+E23","v":1471000},{"$f":"F14+F23","v":257135.2},{"$f":"G14+G23","v":1471000},{"$f":"H14+H23","v":241471.62},{"$f":"E24-G24","v":0},null,null,null,null,null,null,{"$f":"P14+P23","v":1712471.6199999999},{"$f":"Q14+Q23","v":1712471.6199999999}]
[null,"Глава администрации поселения \nЛенинградской области                       __________       Н.Е.Кулакова\n                                                                   (подпись)          (фамилия, инициалы)\nГлавный бухгалтер                              ___________   Н.А.Пылаева\n                                                                    (подпись)       (фамилия, инициалы)\n",null,null,null,null,null,null,null,null,null,null,null,"Согласовано :                                                                             председатель комитета по местному самоуправлению, межнациональным и межконфессиональным отношениям Ленинградской области                          __________   Бурак Л.В."]
[]
[null,"Исполнитель                    Куваева Марина Николаевна   тел. 8-81372-58-517"]
[null,"____декабря  2017 года"]
[]
[null,"Согласовано : Комитет финансов Лужского МР ЛО"]
[null,null,null,null,null,null,null,null,null,"\"_____\" декабря 2017г."]
[null,"________________   __________________"]
[]
[]
[]
[]
[]
[]
[]
[]
[]
[]
[]
[]
[]
[]
[]
[]
[]
[]
[]
[]
[null,null,null,"%",null,null,"дороги",null,null,null,null,null,null,"замена светильников"]
[null,"Всего ",{"$f":"G54+N54","v":1770699.6600000001},{"$f":"D55+D57","v":99.999999999999986},null,null,{"$f":"G55+G57","v":492077.9},null,null,null,null,null,null,{"$f":"N55+N57","v":1278621.76}]
[null,"Обл.бюдж.",{"$f":"G55+N55","v":1471000},{"$f":"C55/C54*100","v":83.074506266071111},null,null,{"$f":"E14","v":303100},null,{"$f":"G55/G54*100","v":61.595938366669181},null,null,null,null,{"$f":"E23","v":1167900},{"$f":"N55/N54*100","v":91.340538424748857}]
[]
[null,"местн.бюд.",{"$f":"G57+N57","v":299699.65999999997},{"$f":"C57/C54*100","v":16.925493733928878},null,null,188977.9,null,{"$f":"G57/G54*100","v":38.404061633330819},null,null,null,null,110721.76,{"$f":"N57/N54*100","v":8.6594615752511519}]

{"sheet":"Лист1","index":1,"n_rows":0,"n_cols":0,"rows_kept":0,"cut":false,"hidden":false,"merged":[]}